fUST/lending_fUST_20260205
["ID","MTS","AMOUNT","RATE_DAILY","PERIOD"]
[404553325,1770283644931,-2748.66,0.00063013,120]
[404553326,1770283644989,-500.0,0.00063013,120]
[404553327,1770283645047,-2542.46,0.00063013,120]
[404553328,1770283645103,-2594.27,0.00063013,90]
[404553329,1770283645159,-500.0,0.00063013,120]
[404553330,1770283645218,-1003.47,0.00063013,21]
[404553331,1770283645276,-3929.24,0.00063013,14]
[404553332,1770283645333,-151.0,0.00063014,120]
[404553333,1770283645387,-151.0,0.00063014,120]
[404553334,1770283645446,-151.0,0.00063014,120]
[404553335,1770283645503,-151.0,0.00063014,120]
[404553336,1770283645563,-151.0,0.00063014,120]
[404553337,1770283645621,-151.0,0.00063014,120]
[404553338,1770283645684,-151.0,0.00063014,120]
[404553339,1770283645743,-151.0,0.00063014,120]
[404553340,1770283645800,-151.0,0.00063014,120]
[404553341,1770283645857,-151.0,0.00063014,120]
[404553342,1770283645912,-151.0,0.00063014,120]
[404553343,1770283645963,-151.0,0.00063014,120]
[404553344,1770283646018,-151.0,0.00063014,120]
[404553345,1770283646076,-151.0,0.00063014,120]
[404553346,1770283646132,-151.0,0.00063014,120]
[404553347,1770283646193,-264.962399,0.00063014,120]
[404553348,1770283646250,-155.0,0.000635,120]
[404553349,1770283646308,-2748.66,0.00063561,120]
[404553350,1770283646365,-500.0,0.00063561,120]
[404553351,1770283646423,-2542.46,0.00063561,120]
[404553352,1770283646479,-2594.27,0.00063561,90]
[404553353,1770283646535,-500.0,0.00063561,120]
[404553354,1770283646591,-1003.47,0.00063561,21]
[404553355,1770283646650,-3929.24,0.00063561,14]
[404553356,1770283646705,-20000.0,0.00064,120]
[404553357,1770283646866,-2748.66,0.00064109,120]
[404553358,1770283646924,-156.84491382,0.00064109,120]
[404553359,1770283646979,-2542.46,0.00064109,120]
[404553360,1770283647034,-2594.27,0.00064109,90]
[404553361,1770283647090,-500.0,0.00064109,120]
[404553362,1770283647151,-1003.47,0.00064109,21]
[404553363,1770283647208,-3929.24,0.00064109,14]
[404553364,1770283647264,-2748.66,0.00064657,120]
[404553365,1770283647321,-2542.46,0.00064657,120]
[404553366,1770283647377,-2594.27,0.00064657,90]
[404553367,1770283647441,-500.0,0.00064657,120]
[404553368,1770283647505,-1003.47,0.00064657,21]
[404553369,1770283647565,-3929.24,0.00064657,14]
[404553370,1770283647626,-240.59,0.000647,14]
[404553371,1770283647686,-500.0,0.00064928,120]
[404553372,1770283647747,-7112.0,0.00065,120]
[404553373,1770283647806,-155.0,0.000652,120]
[404553374,1770283647866,-169.68,0.000652,14]
[404553375,1770283647927,-2748.66,0.00065205,120]
[404553376,1770283647986,-2542.46,0.00065205,120]
[404553377,1770283648045,-2594.27,0.00065205,90]
[404553378,1770283648106,-500.0,0.00065205,120]
[404553379,1770283648163,-1003.47,0.00065205,21]
[404553380,1770283648227,-3929.24,0.00065205,14]
[404553381,1770283648287,-2748.66,0.00065753,120]
[404553382,1770283648344,-2542.46,0.00065753,120]
[404553383,1770283648402,-2594.27,0.00065753,90]
[404553384,1770283648458,-500.0,0.00065753,120]
[404553385,1770283648516,-1003.47,0.00065753,21]
[404553386,1770283648575,-3929.24,0.00065753,14]
[404553387,1770283648640,-1000.0,0.00065861,120]
[404553388,1770283648703,-1000.0,0.00065861,120]
[404553389,1770283648765,-1000.0,0.00065861,120]
[404553390,1770283648824,-20000.0,0.00066,120]
[404553391,1770283648884,-2748.66,0.00066301,120]
[404553392,1770283648942,-2542.46,0.00066301,120]
[404553393,1770283648999,-2594.27,0.00066301,90]
[404553394,1770283649056,-524.11805058,0.00066301,120]
[404553395,1770283649121,-1003.47,0.00066301,21]
[404553396,1770283649192,-3929.24,0.00066301,14]
[404553397,1770283649251,-2748.66,0.00066849,120]
[404553398,1770283649312,-2542.46,0.00066849,120]
[404553399,1770283649371,-2594.27,0.00066849,90]
[404553400,1770283649430,-1003.47,0.00066849,21]
[404553401,1770283649489,-3929.24,0.00066849,14]
[404553402,1770283649550,-155.0,0.000669,120]
[404553403,1770283649609,-20000.0,0.00067,120]
[404553404,1770283649667,-2748.76678771,0.00067397,120]
[404553405,1770283649723,-2542.57248126,0.00067397,120]
[404553406,1770283649778,-2594.28495485,0.00067397,90]
[404553407,1770283649833,-1003.62620674,0.00067397,21]
[404553408,1770283649891,-3929.24201031,0.00067397,14]
[404553409,1770283649947,-20000.0,0.00068,120]
[404553410,1770283650002,-800.0,0.00068367,60]
[404553411,1770283650057,-800.0,0.00068455,60]
[404553412,1770283650113,-500.0,0.00068493,120]
[404553413,1770283650169,-500.0,0.00068493,120]
[404553414,1770283650227,-558.60415774,0.00068493,120]
[404553415,1770283650281,-155.0,0.000686,120]
[404553416,1770283650333,-169.68,0.000686,14]
[404553417,1770283650385,-800.0,0.0006904,90]
[404553418,1770283650435,-800.0,0.00069057,90]
[404553419,1770283650483,-500.0,0.00069196,120]
[404553420,1770283650535,-240.59,0.000692,14]
[404553421,1770283650589,-800.0,0.00069472,90]
[404553422,1770283650643,-800.0,0.00069619,90]
[404553423,1770283650697,-150.0,0.00069654,120]
[404553424,1770283650752,-458.768613,0.00069654,120]
[404553425,1770283650807,-767.537227,0.00069654,120]
[404553426,1770283650861,-1076.305841,0.00069654,120]
[404553427,1770283650917,-1385.074455,0.00069654,120]
[404553428,1770283650971,-1693.843068,0.00069654,120]
[404553429,1770283651027,-2002.611682,0.00069654,120]
[404553430,1770283651081,-2311.380296,0.00069654,120]
[404553431,1770283651137,-2620.14891,0.00069654,120]
[404553432,1770283651194,-2928.917523,0.00069654,120]
[404553433,1770283651248,-800.0,0.00069816,90]
[404553434,1770283651303,-202.0,0.0007,120]
[404553435,1770283651356,-500.0,0.0007015,120]
[404553436,1770283651408,-517.74433047,0.0007015,120]
[404553437,1770283651458,-155.0,0.000702,120]
[404553438,1770283651508,-155.0,0.000719,120]
[404553439,1770283651567,-1018.3507015,0.00072,120]
[404553440,1770283651625,-1444.0,0.00072603,120]
[404553441,1770283651681,-155.0,0.000736,120]
[404553442,1770283651734,-1367.000001,0.00074878,92]
[404553443,1770283651891,-196.61,0.000749,30]
[404553444,1770283651959,-17941.86,0.00075,120]
[404553445,1770283652021,-155.0,0.000753,120]
[404553446,1770283652082,-240.59,0.000753,14]
[404553447,1770283652163,-2940.6545209,0.00075472,30]
[404553448,1770283652228,-164.0,0.00077,120]
[404553449,1770283652292,-50878.3452,0.00077,120]
[404553450,1770283652356,-169.68,0.00078,14]
[404553451,1770283652420,-163.59,0.000781,14]
[404553452,1770283652479,-1000.0,0.00079,120]
[404553453,1770283652542,-1000.0,0.0008,120]
[404553454,1770283652604,-200.0,0.0008,120]
[404553455,1770283652658,-455.6505236,0.0008,60]
[404553456,1770283652712,-161.0,0.0008,120]
[404553457,1770283652765,-383.32076389,0.00080822,7]
[404553458,1770283652870,151.0,0.00051944,120]
[404553459,1770283652935,250.0,0.00051944,120]
[404553460,1770283652993,1397.92,0.00054794,10]
[404553461,1770283653054,217.63717586,0.00051944,120]
[404553462,1770283653113,974524.62710709,0.00082182,120]
[404553463,1770283673264,-600.0,0.00027932,30]
[404553464,1770283673335,-720.0,0.00030725,30]
[404553465,1770283673414,-864.0,0.00033797,30]
[404553466,1770283673477,-1000.0,0.00037177,30]
[404553467,1770283673545,-1000.0,0.00040895,60]
[404553468,1770283673616,-244.0,0.00040895,60]
[404553469,1770283673689,-1000.0,0.00044984,60]
[404553470,1770283673753,-492.0,0.00044984,60]
[404553471,1770283673820,-388.0,0.00049483,120]
[404553472,1770283673881,-1000.0,0.00051505,34]
[404553473,1770283673942,-1000.0,0.00051505,34]
[404553474,1770283674009,-1000.0,0.00051505,34]
[404553475,1770283674188,-1000.0,0.00051505,34]
[404553476,1770283674250,-1000.0,0.00051505,34]
[404553477,1770283674310,-1000.0,0.00051505,34]
[404553478,1770283674368,-1000.0,0.00051505,34]
[404553479,1770283674425,-1000.0,0.00051505,34]
[404553480,1770283674481,-1000.0,0.00051505,34]
[404553481,1770283674549,-1000.0,0.00051505,34]
[404553482,1770283674616,-1000.0,0.00051505,34]
[404553483,1770283674679,-1000.0,0.00051505,34]
[404553484,1770283674738,-1000.0,0.00051505,34]
[404553485,1770283674797,-1000.0,0.00051505,34]
[404553486,1770283674855,-1000.0,0.00051505,34]
[404553487,1770283674916,-1000.0,0.00051505,34]
[404553488,1770283674975,-1000.0,0.00051505,34]
[404553489,1770283675034,-1000.0,0.00051505,34]
[404553490,1770283675094,-1000.0,0.00051505,34]
[404553491,1770283675155,-1000.0,0.00051505,34]
[404553492,1770283675216,-250.0,0.00051944,120]
[404553493,1770283675276,-250.0,0.00051944,120]
[404553494,1770283675335,-250.0,0.00051944,120]
[404553495,1770283675394,-151.0,0.00051944,120]
[404553496,1770283675452,-250.0,0.00051944,120]
[404553497,1770283675511,-156.587,0.00051944,120]
[404553498,1770283675577,-250.0,0.00051944,120]
[404553499,1770283675635,-162.380719,0.00051944,120]
[404553500,1770283675693,-250.0,0.00051944,120]
[404553501,1770283675750,-168.3888056,0.00051944,120]
[404553502,1770283675805,-250.0,0.00051944,120]
[404553503,1770283675861,-174.61919141,0.00051944,120]
[404553504,1770283675919,-250.0,0.00051944,120]
[404553505,1770283675976,-181.08010149,0.00051944,120]
[404553506,1770283676032,-250.0,0.00051944,120]
[404553507,1770283676091,-187.78006525,0.00051944,120]
[404553508,1770283676151,-250.0,0.00051944,120]
[404553509,1770283676208,-194.72792766,0.00051944,120]
[404553510,1770283676265,-250.0,0.00051944,120]
[404553511,1770283676322,-201.93286099,0.00051944,120]
[404553512,1770283676376,-250.0,0.00051944,120]
[404553513,1770283676432,-209.40437684,0.00051944,120]
[404553514,1770283676487,-250.0,0.00051944,120]
[404553515,1770283676545,-217.15233878,0.00051944,120]
[404553516,1770283676606,-250.0,0.00051944,120]
[404553517,1770283676667,-225.18697532,0.00051944,120]
[404553518,1770283676726,-250.0,0.00051944,120]
[404553519,1770283676782,-250.0,0.00051944,120]
[404553520,1770283676843,-233.51889341,0.00051944,120]
[404553521,1770283676905,-242.15909246,0.00051944,120]
[404553522,1770283676964,-250.0,0.00051944,120]
[404553523,1770283677022,-250.0,0.00051944,120]
[404553524,1770283677079,-251.11897888,0.00051944,120]
[404553525,1770283677137,-250.0,0.00051944,120]
[404553526,1770283677197,-260.4103811,0.00051944,120]
[404553527,1770283677255,-270.0455652,0.00051944,120]
[404553528,1770283677310,-280.03725112,0.00051944,120]
[404553529,1770283677365,-290.39862941,0.00051944,120]
[404553530,1770283677423,-301.1433787,0.00051944,120]
[404553531,1770283677480,-1000.0,0.00051944,120]
[404553532,1770283677534,-1000.0,0.00051944,120]
[404553533,1770283677589,-1000.0,0.00051944,120]
[404553534,1770283677646,-1000.0,0.00051944,120]
[404553535,1770283677701,-1000.0,0.00051944,120]
[404553536,1770283677757,-1000.0,0.00051944,120]
[404553537,1770283677813,-1000.0,0.00051944,120]
[404553538,1770283677872,-1000.0,0.00051944,120]
[404553539,1770283677931,-1000.0,0.00051944,120]
[404553540,1770283677991,-831.8145412,0.00051944,120]
[404553541,1770283678049,-1527.97,0.00054794,7]
[404553542,1770283678106,-1397.92,0.00055342,10]
[404553543,1770283678163,-1527.97,0.00055342,7]
[404553544,1770283678221,-1397.92,0.0005589,10]
[404553545,1770283678275,-1527.97,0.0005589,7]
[404553546,1770283678331,-1397.92,0.00056438,10]
[404553547,1770283678388,-1527.97,0.00056438,7]
[404553548,1770283678446,-255.81,0.00056976,10]
[404553549,1770283678504,-1397.92,0.00056986,10]
[404553550,1770283678563,-1527.97,0.00056986,7]
[404553551,1770283678623,-249.53969691,0.0005753,120]
[404553552,1770283678680,-1397.92,0.00057534,10]
[404553553,1770283678737,-1527.97,0.00057534,7]
[404553554,1770283678796,-741.26793723,0.00057534,7]
[404553555,1770283678957,-1397.92,0.00058082,10]
[404553556,1770283679015,-1527.97,0.00058082,7]
[404553557,1770283679072,-1397.92,0.0005863,10]
[404553558,1770283679130,-1527.97,0.0005863,7]
[404553559,1770283679189,-1397.92,0.00059178,10]
[404553560,1770283679247,-1527.97,0.00059178,7]
[404553561,1770283679304,-1397.92,0.00059726,10]
[404553562,1770283679362,-1527.97,0.00059726,7]
[404553563,1770283679419,-1397.92,0.00060273,10]
[404553564,1770283679477,-1527.97,0.00060273,7]
[404553565,1770283679534,-1397.92,0.00060821,10]
[404553566,1770283679594,-1527.97,0.00060821,7]
[404553567,1770283679653,-1397.92,0.00061369,10]
[404553568,1770283679711,-1527.97,0.00061369,7]
[404553569,1770283679767,-1397.92,0.00061917,10]
[404553570,1770283679823,-1527.97,0.00061917,7]
[404553571,1770283679878,-1397.92,0.00062465,10]
[404553572,1770283679935,-1527.97,0.00062465,7]
[404553573,1770283679993,-1397.92,0.00063013,10]
[404553574,1770283680049,-1527.97,0.00063013,7]
[404553575,1770283680107,-1397.92,0.00063561,10]
[404553576,1770283680166,-1527.97,0.00063561,7]
[404553577,1770283680226,-1397.92,0.00064109,10]
[404553578,1770283680285,-1527.97,0.00064109,7]
[404553579,1770283680339,-1397.92,0.00064657,10]
[404553580,1770283680393,-1527.97,0.00064657,7]
[404553581,1770283680448,-1397.92,0.00065205,10]
[404553582,1770283680504,-1527.97,0.00065205,7]
[404553583,1770283680564,-1397.92,0.00065753,10]
[404553584,1770283680622,-1527.97,0.00065753,7]
[404553585,1770283680685,-1397.92,0.00066301,10]
[404553586,1770283680742,-1527.97,0.00066301,7]
[404553587,1770283680798,-1397.92,0.00066849,10]
[404553588,1770283680852,-1527.97,0.00066849,7]
[404553589,1770283680906,-1398.0285185,0.00067397,10]
[404553590,1770283680962,-1528.07402121,0.00067397,7]
[404553591,1770283681017,-709182.01789911,0.00082182,120]
[404553592,1770283681069,-277.0,0.00082182,120]
[404553593,1770283681161,277.0,0.0006483,120]
[404553594,1770283681223,793124.53446377,0.00082182,120]
[404553595,1770283681309,150.0,0.00077144,120]
[404553596,1770283681385,424.558419,0.00077144,120]
[404553597,1770283681453,699.116838,0.00077144,120]
[404553598,1770283681518,973.675257,0.00077144,120]
[404553599,1770283681586,1248.233676,0.00077144,120]
[404553600,1770283709989,-163.59,0.000565,14]
[404553601,1770283710045,-88888.0,0.00059898,120]
[404553602,1770283710097,-169.69,0.0006,14]
[404553603,1770283710154,-196.61,0.0006,30]
[404553604,1770283710210,-1522.792095,0.00077144,120]
[404553605,1770283710263,-1797.350514,0.00077144,120]
[404553606,1770283710312,-2071.908933,0.00077144,120]
[404553607,1770283710360,-2346.467352,0.00077144,120]
[404553608,1770283710406,-2621.025771,0.00077144,120]
[404553609,1770283710452,-550.5,0.00082182,120]
[404553610,1770283711685,419.71422197,0.00041096,31]
[404553611,1770283712028,41021.55574211,0.00034,14]
[404553612,1770283754164,-1000.06,0.00015342,2]
[404553613,1770283754186,-793.05338956,0.0002,2]
[404553614,1770283760256,999.98,0.00015342,2]
[404553629,1770283832096,-185.8523217,0.0002414,2]
[404553630,1770283832106,-213.18,0.0002464,10]
[404553631,1770283832116,-177.65,0.0002464,10]
[404553632,1770283832125,-888.25,0.0002464,10]
[404553633,1770283832135,-38132.4893465,0.0002465,2]
[404553634,1770283832149,-11253.35313745,0.0002465,2]
[404553674,1770283838416,-447.57343296,0.00024649,2]
[404553675,1770283838427,-255.5449067,0.00024649,2]
[404553677,1770283838436,-432.92334389,0.00024649,2]
[404553679,1770283838446,-4336.34074726,0.0002465,2]
[404553682,1770283838458,-7883.15822606,0.0002465,2]
[404553683,1770283838470,-2581.679038,0.0002465,2]
[404553684,1770283838481,-784.64930823,0.0002465,2]
[404553715,1770283840412,-6272.37519345,0.0002465,2]
[404553722,1770283840468,-5320.96573661,0.0002465,2]
[404553724,1770283840479,-623.38455915,0.0002465,2]
[404553759,1770283840796,-12570.00459105,0.0002465,2]
[404554023,1770283847518,-10715.0615411,0.0002465,2]
[404554024,1770283847528,-1470.02869129,0.0002465,2]
[404554025,1770283847538,-6413.85939726,0.0002465,2]
[404554026,1770283847556,-592.49734784,0.0002465,2]
[404554027,1770283847567,-1211.47622826,0.0002465,2]
[404554028,1770283847577,-515.37443262,0.0002465,2]
[404554029,1770283847587,-2313.20841295,0.00024774,2]
[404554030,1770283847596,-4623.1617526,0.00024774,2]
[404554031,1770283847605,-1000.0,0.000255,2]
[404554032,1770283847615,-946.59152667,0.00025976,2]
[404554033,1770283847627,-380.07280993,0.00025976,2]
[404554034,1770283847636,-1425.3023388,0.00027418,2]
[404554035,1770283847647,-11435.37433009,0.00027418,2]
[404554036,1770283847659,-2643.18,0.00027418,2]
[404554039,1770283978693,10000.0,0.00014,2]
[404554041,1770284226680,297.14427897,0.00013699,2]
[404554043,1770284811135,-1252.84486022,0.00016438,5]
[404554044,1770284959074,-3971.15513978,0.00016438,5]
[404554045,1770284959095,-5000.0,0.00016597,2]
[404554046,1770284959114,-88.45780022,0.00016765,2]
[404554200,1770285045700,-642.6913048,0.00016431,2]
[404554207,1770285046604,-2326.2686952,0.00016431,2]
[404554208,1770285046613,-525.60938824,0.00016497,2]
[404554209,1770285046623,-1941.44972111,0.00016597,2]
[404554210,1770285046632,-212.0,0.00016765,2]
[404554211,1770285046642,-300.0,0.00017273,2]
[404554212,1770285046652,-300.0,0.00017273,2]
[404554213,1770285046661,-91.18393239,0.00017273,2]
[404554221,1770285590759,-600.0,0.00031408,30]
[404554222,1770285590810,-720.0,0.00034548,30]
[404554223,1770285590865,-1000.0,0.00035538,30]
[404554224,1770285590919,-172.14,0.0003705,60]
[404554225,1770285590968,-172.14,0.0003715,60]
[404554226,1770285591015,-172.157658,0.0003725,60]
[404554227,1770285591064,-864.0,0.00038003,30]
[404554228,1770285591113,-204.72505301,0.00039087,11]
[404554229,1770285591161,-966.74105763,0.0003979,20]
[404554230,1770285591208,-160.4,0.0004,14]
[404554231,1770285591252,-85185.74,0.0004,14]
[404554232,1770285591297,-750.0,0.0004,120]
[404554233,1770285591340,-750.0,0.0004,120]
[404554234,1770285591384,-750.0,0.0004,120]
[404554235,1770285591428,-750.0,0.0004,120]
[404554236,1770285591469,-293.79995538,0.00041096,31]
[404554237,1770285591511,-1000.0,0.00041803,60]
[404554238,1770285591556,-616.0,0.00045984,120]
[404554239,1770285591601,-789.99200418,0.000525,120]
[404554240,1770285591645,-500.0,0.00054794,120]
[404554241,1770285591693,-500.0,0.00054794,120]
[404554242,1770285591737,-389.38571971,0.00054794,120]
[404554243,1770285591780,-500.0,0.00054794,120]
[404554244,1770285591823,-631.00000001,0.00054794,120]
[404554245,1770285591866,-500.0,0.00054794,120]
[404554246,1770285591909,-999.0,0.00054794,120]
[404554247,1770285591954,-500.0,0.00054794,120]
[404554248,1770285591997,-500.0,0.00055342,120]
[404554249,1770285592040,-500.0,0.00055342,120]
[404554250,1770285592086,-500.0,0.00055342,120]
[404554251,1770285592136,-409.88797838,0.00055342,120]
[404554252,1770285592189,-500.0,0.00055342,120]
[404554253,1770285592236,-500.0,0.0005589,120]
[404554254,1770285592284,-500.0,0.0005589,120]
[404554255,1770285592331,-500.0,0.0005589,120]
[404554256,1770285592378,-500.0,0.0005589,120]
[404554257,1770285592426,-750.0,0.0005589,120]
[404554258,1770285592473,-750.0,0.0005589,120]
[404554259,1770285592520,-750.0,0.0005589,120]
[404554260,1770285592566,-750.0,0.0005589,120]
[404554261,1770285592611,-500.0,0.00056438,120]
[404554262,1770285592656,-585.91796191,0.00056438,120]
[404554263,1770285592706,-500.0,0.00056438,120]
[404554264,1770285592751,-592.24200222,0.00056438,120]
[404554265,1770285592796,-500.0,0.00056986,120]
[404554266,1770285592840,-500.0,0.00056986,120]
[404554267,1770285592884,-500.0,0.00057534,120]
[404554268,1770285592928,-500.0,0.00057534,120]
[404554269,1770285592978,-500.0,0.00058082,120]
[404554270,1770285593030,-500.0,0.00058082,120]
[404554271,1770285593085,-500.0,0.0005863,120]
[404554272,1770285593140,-500.0,0.0005863,120]
[404554273,1770285593195,-500.0,0.00059178,120]
[404554274,1770285593250,-545.00000001,0.00059178,120]
[404554275,1770285593302,-543.1669326,0.00059593,120]
[404554276,1770285593356,-160.4,0.000597,14]
[404554277,1770285593505,-500.0,0.00059726,120]
[404554278,1770285593559,-750.0,0.00059798,120]
[404554279,1770285593610,-750.0,0.00059798,120]
[404554280,1770285593659,-750.0,0.00059798,120]
[404554281,1770285593711,-750.0,0.00059798,120]
[404554282,1770285593761,-88888.0,0.00059798,120]
[404554283,1770285593808,-85185.74,0.000598,14]
[404554284,1770285593857,-500.0,0.00060273,120]
[404554285,1770285593905,-500.0,0.00060821,120]
[404554286,1770285593953,-296.727768,0.00061369,120]
[404554287,1770285593999,-150.39,0.00065,120]
[404554288,1770285594046,-150.0,0.0007,120]
[404554289,1770285594097,-1444.0,0.00072603,120]
[404554290,1770285594150,-750.0,0.0007555,120]
[404554291,1770285594202,-750.0,0.0007555,120]
[404554292,1770285594254,-750.0,0.0007555,120]
[404554293,1770285594303,-750.0,0.0007555,120]
[404554294,1770285594351,-150.0,0.00077144,120]
[404554295,1770285594398,-393.769243,0.00077144,120]
[404554296,1770285594446,-637.538487,0.00077144,120]
[404554297,1770285594494,-881.307731,0.00077144,120]
[404554298,1770285594540,-1125.076975,0.00077144,120]
[404554299,1770285594587,-1368.846219,0.00077144,120]
[404554300,1770285594633,-1612.615462,0.00077144,120]
[404554301,1770285594681,-1856.384706,0.00077144,120]
[404554302,1770285594731,-2100.15395,0.00077144,120]
[404554303,1770285594780,-2343.923194,0.00077144,120]
[404554304,1770285594826,-166.0,0.0008,120]
[404554305,1770285594875,-166.0,0.00080411,120]
[404554306,1770285594921,-235.20698356,0.00080822,7]
[404554307,1770285594969,-160.4,0.000809,14]
[404554308,1770285595015,-150.0,0.00082166,120]
[404554309,1770285595063,-250.0,0.00082181,120]
[404554310,1770285595112,-151.0,0.00082181,120]
[404554311,1770285595161,-250.0,0.00082181,120]
[404554312,1770285595209,-156.587,0.00082181,120]
[404554313,1770285595256,-250.0,0.00082181,120]
[404554314,1770285595300,-162.380719,0.00082181,120]
[404554315,1770285595342,-250.0,0.00082181,120]
[404554316,1770285595386,-168.3888056,0.00082181,120]
[404554317,1770285595428,-250.0,0.00082181,120]
[404554318,1770285595470,-174.61919141,0.00082181,120]
[404554319,1770285595511,-2000.0,0.00082181,120]
[404554320,1770285595553,-250.0,0.00082181,120]
[404554321,1770285595603,-181.08010149,0.00082181,120]
[404554322,1770285595663,-2000.0,0.00082181,120]
[404554323,1770285595715,-250.0,0.00082181,120]
[404554324,1770285595767,-2000.0,0.00082181,120]
[404554325,1770285595821,-187.78006525,0.00082181,120]
[404554326,1770285595875,-250.0,0.00082181,120]
[404554327,1770285595927,-2000.0,0.00082181,120]
[404554328,1770285595981,-194.72792766,0.00082181,120]
[404554329,1770285596035,-2000.0,0.00082181,120]
[404554330,1770285596093,-250.0,0.00082181,120]
[404554331,1770285596149,-201.93286099,0.00082181,120]
[404554332,1770285596206,-2000.0,0.00082181,120]
[404554333,1770285596262,-250.0,0.00082181,120]
[404554334,1770285596319,-209.40437684,0.00082181,120]
[404554335,1770285596377,-250.0,0.00082181,120]
[404554336,1770285596432,-2000.0,0.00082181,120]
[404554337,1770285596489,-217.15233878,0.00082181,120]
[404554338,1770285596542,-2000.0,0.00082181,120]
[404554339,1770285596600,-250.0,0.00082181,120]
[404554340,1770285596655,-225.18697532,0.00082181,120]
[404554341,1770285596713,-233.51889341,0.00082181,120]
[404554342,1770285596770,-250.0,0.00082181,120]
[404554343,1770285596825,-2000.0,0.00082181,120]
[404554344,1770285596883,-242.15909246,0.00082181,120]
[404554345,1770285596941,-250.0,0.00082181,120]
[404554346,1770285596999,-2000.0,0.00082181,120]
[404554347,1770285597055,-251.11897888,0.00082181,120]
[404554348,1770285597108,-250.0,0.00082181,120]
[404554349,1770285597163,-2000.0,0.00082181,120]
[404554350,1770285597219,-260.4103811,0.00082181,120]
[404554351,1770285597276,-250.0,0.00082181,120]
[404554352,1770285597333,-2000.0,0.00082181,120]
[404554353,1770285597387,-250.0,0.00082181,120]
[404554354,1770285597441,-270.0455652,0.00082181,120]
[404554355,1770285597493,-2000.0,0.00082181,120]
[404554356,1770285597545,-250.0,0.00082181,120]
[404554357,1770285597596,-280.03725112,0.00082181,120]
[404554358,1770285597644,-2000.0,0.00082181,120]
[404554359,1770285597699,-250.0,0.00082181,120]
[404554360,1770285597750,-290.39862941,0.00082181,120]
[404554361,1770285597800,-2000.0,0.00082181,120]
[404554362,1770285597851,-301.1433787,0.00082181,120]
[404554363,1770285598010,-287.83567504,0.00082181,120]
[404554364,1770285598068,-2000.0,0.00082181,120]
[404554365,1770285598118,-2000.0,0.00082181,120]
[404554366,1770285598168,-2000.0,0.00082181,120]
[404554367,1770285598216,-2000.0,0.00082181,120]
[404554368,1770285598270,-2000.0,0.00082181,120]
[404554369,1770285598396,1637867.17475074,0.00082182,120]
[404554370,1770285621385,-88888.0,0.00059698,120]
[404554371,1770285631389,151.0,0.0004,120]
[404554372,1770285631681,151.0,0.00061917,120]
[404554373,1770285646339,203.08245846,0.0003979,40]
[404554374,1770285780664,271.82435516,0.0003979,120]
[404554375,1770285781061,271.82435516,0.0003979,120]
[404554376,1770285781516,271.82435516,0.0003979,120]
[404554378,1770285789389,721.87169289,0.0003979,120]
[404554379,1770285789481,262.62093677,0.0003979,120]
[404554380,1770285789532,313.62662332,0.0003979,120]
[404554381,1770285789896,262.62093677,0.0003979,120]
[404554382,1770285789951,313.62662332,0.0003979,120]
[404554383,1770285790349,262.62093677,0.0003979,120]
[404554384,1770285790401,313.62662332,0.0003979,120]
[404554385,1770285790765,262.62093677,0.0003979,120]
[404554386,1770285791115,262.62093677,0.0003979,120]